bitfinex/quotes_SOLUSD_20250418
["timestamp","ask_amount","ask_price","bid_price","bid_amount"]
[1744981505958,20.42704635,134.64,134.6,12.99983305]
[1744981506154,20.42704635,134.64,134.59,12.99983305]
[1744981506862,7.42831674,134.62,134.59,12.99983305]
[1744981507040,12.99983305,134.61,134.57,12.99983305]
[1744981507362,12.99983305,134.6,134.56,47.87983305]
[1744981507561,12.99983305,134.61,134.56,47.87983305]
[1744981508845,7.43052459,134.58,134.55,40.88]
[1744981509347,7.43052459,134.58,134.55,53.87983305]
[1744981511247,26.00490377,134.59,134.54,20.0]
[1744981511468,12.99983305,134.56,134.51,82.9]
[1744981511637,12.99983305,134.56,134.51,26.0]
[1744981511962,12.99983305,134.56,134.52,32.99983305]
[1744981512353,12.99983305,134.57,134.52,20.0]
[1744981512549,12.99983305,134.56,134.52,12.99983305]
[1744981512750,12.99983305,134.56,134.51,38.99983305]
[1744981512964,12.99983305,134.55,134.51,38.99983305]
[1744981513258,20.4325668,134.54,134.5,14.86]
[1744981515057,20.4325668,134.54,134.49,12.99983305]
[1744981515454,12.99983305,134.53,134.48,47.85983305]
[1744981516562,12.99983305,134.53,134.49,12.99983305]
[1744981517562,7.43383883,134.52,134.49,12.99983305]
[1744981518258,18.5793976,134.56,134.5,12.99983305]
[1744981518461,18.5793976,134.56,134.51,12.99983305]
[1744981518762,31.57923065,134.56,134.51,12.99983305]
[1744981518963,18.5793976,134.56,134.51,12.99983305]
[1744981519464,26.01102661,134.56,134.51,12.99983305]
[1744981519773,26.01102661,134.56,134.52,12.99983305]
[1744981521268,26.01102661,134.56,134.49,0.14216157]
[1744981521476,26.01456814,134.54,134.49,12.99983305]
[1744981521774,26.01456814,134.54,134.48,47.85983305]
[1744981522160,7.43273375,134.54,134.5,12.99983305]
[1744981522753,7.43273375,134.54,134.51,12.99983305]
[1744981523473,20.4325668,134.54,134.48,48.00199462]
[1744981523674,12.99983305,134.53,134.48,48.00199462]
[1744981524266,39.01440119,134.54,134.48,48.00199462]
[1744981524774,12.99983305,134.5,134.46,128.9]
[1744981524978,12.99983305,134.51,134.46,141.89983305]
[1744981525166,18.64964886,134.53,134.47,12.99983305]
[1744981525372,7.43439149,134.51,134.47,12.99983305]
[1744981525674,7.43439149,134.51,134.46,128.9]
[1744981525974,7.43439149,134.51,134.47,12.99983305]
[1744981526571,26.02037022,134.51,134.47,12.99983305]
[1744981526770,39.02020327,134.51,134.46,141.89983305]
[1744981526963,39.02020327,134.51,134.46,128.9]
[1744981527163,12.99983305,134.5,134.44,266.78]
[1744981527351,18.64964886,134.5,134.45,12.99983305]
[1744981527552,20.43533011,134.49,134.45,12.99983305]
[1744981527883,39.02407276,134.49,134.45,12.99983305]
[1744981529079,39.02407276,134.49,134.44,266.78]
[1744981529279,39.02407276,134.49,134.45,12.99983305]
[1744981529475,39.01633493,134.53,134.46,20.0]
[1744981529673,18.64964886,134.52,134.48,12.99983305]
[1744981529981,39.01633493,134.53,134.48,12.99983305]
[1744981531670,12.99983305,134.51,134.46,20.0]
[1744981531871,12.99983305,134.51,134.47,12.99983305]
[1744981532073,12.99983305,134.51,134.46,32.99983305]
[1744981532376,7.43328625,134.53,134.48,12.99983305]
[1744981532571,7.43315892,134.54,134.5,12.99983305]
[1744981532773,7.43315892,134.54,134.52,12.99983305]
[1744981532980,7.4299725,134.59,134.54,20.0]
[1744981533160,7.4299725,134.59,134.57,12.99983305]
[1744981533360,7.4299725,134.59,134.56,12.99983305]
[1744981533580,12.99983305,134.57,134.54,15.06]
[1744981534189,12.99983305,134.56,134.52,35.06]
[1744981534487,12.99983305,134.56,134.52,48.05983305]
[1744981535491,7.43218134,134.55,134.52,48.05983305]
[1744981535993,7.43052459,134.58,134.53,12.99983305]
[1744981536164,7.43052459,134.58,134.52,41.00696101]
[1744981536365,20.43035764,134.58,134.54,12.99983305]
[1744981537783,7.43052459,134.58,134.54,12.99983305]
[1744981538086,39.00473682,134.59,134.54,12.99983305]
[1744981538306,38.99983305,134.58,134.52,35.06]
[1744981538484,38.99983305,134.58,134.53,12.99983305]
[1744981538888,12.99983305,134.58,134.53,12.99983305]
[1744981540490,7.43107676,134.57,134.53,12.99983305]
[1744981543681,39.00860171,134.57,134.52,35.06]
[1744981543993,12.99983305,134.55,134.5,12.99983305]
[1744981544291,12.99983305,134.54,134.5,15.06]
[1744981544888,7.43328625,134.53,134.5,15.06]
[1744981545480,7.43328625,134.53,134.5,28.05983305]
[1744981545676,26.01650188,134.53,134.47,33.14199462]
[1744981545887,26.01650188,134.53,134.5,12.99983305]
[1744981546283,12.99983305,134.52,134.45,117.96]
[1744981546496,12.99983305,134.51,134.46,12.99983305]
[1744981546693,12.99983305,134.5,134.45,35.06]
[1744981546897,7.43439149,134.51,134.48,12.99983305]
[1744981547785,7.43439149,134.51,134.49,12.99983305]
[1744981548995,39.02020327,134.51,134.46,12.99983305]
[1744981549203,12.99983305,134.49,134.41,20.0]
[1744981549504,18.64964886,134.49,134.42,12.99983305]
[1744981549806,18.64964886,134.49,134.43,12.99983305]
[1744981549979,18.64964886,134.49,134.44,12.99983305]
[1744981550180,31.64948191,134.49,134.45,12.99983305]
[1744981550382,31.64948191,134.47,134.41,20.0]
[1744981550588,31.64948191,134.47,134.42,12.99983305]
[1744981550995,20.43698908,134.46,134.42,12.99983305]
[1744981551297,26.0300461,134.46,134.41,12.99983305]
[1744981551494,18.58947824,134.49,134.44,12.99983305]
[1744981551697,18.58947824,134.49,134.4,44.95214013]
[1744981551698,7.43604997,134.48,134.46,12.99983305]
[1744981552404,7.43604997,134.48,134.45,12.99983305]
[1744981552612,7.43604997,134.48,134.43,15.16]
[1744981552613,7.43604997,134.48,134.46,12.99983305]
[1744981552904,7.43604997,134.48,134.45,12.99983305]
[1744981553203,7.43549706,134.49,134.45,12.99983305]
[1744981553703,20.43533011,134.49,134.44,12.99983305]
[1744981554088,31.64948191,134.48,134.44,12.99983305]
[1744981554405,31.64948191,134.48,134.43,28.15983305]
[1744981554707,31.64948191,134.48,134.43,15.16]
[1744981554899,31.64948191,134.48,134.43,28.15983305]
[1744981555198,7.43660295,134.47,134.44,12.99983305]
[1744981555406,18.64964886,134.48,134.44,12.99983305]
[1744981555407,7.43629507,134.48,134.44,12.99983305]
[1744981556106,12.99983305,134.46,134.4,46.0]
[1744981556409,7.43629507,134.48,134.4,46.0]
[1744981556608,12.99983305,134.47,134.43,12.99983305]
[1744981556983,12.99983305,134.46,134.4,26.0]
[1744981557202,12.99983305,134.44,134.39,15.82]
[1744981557406,12.99983305,134.44,134.4,12.99983305]
[1744981557726,31.64948191,134.43,134.39,15.82]
[1744981557901,12.99983305,134.44,134.39,28.81983305]
[1744981558210,31.64948191,134.45,134.4,12.99983305]
[1744981558903,31.64948191,134.45,134.41,12.99983305]
[1744981559109,18.64964886,134.45,134.41,12.99983305]
[1744981559312,7.43826242,134.44,134.39,15.82]
[1744981559604,7.43826242,134.44,134.41,12.99983305]
[1744981560213,7.43779346,134.45,134.42,12.99983305]
[1744981561104,7.22595716,134.45,134.42,12.99983305]
[1744981561296,7.43715603,134.46,134.42,12.99983305]
[1744981561492,7.43715603,134.46,134.43,12.99983305]
[1744981562087,18.59009303,134.49,134.45,12.99983305]
[1744981562293,18.64964886,134.46,134.39,35.82]
[1744981562495,26.0,134.46,134.39,35.82]
[1744981562791,12.99983305,134.45,134.4,12.99983305]
[1744981563107,44.64964886,134.46,134.4,12.99983305]
[1744981563108,12.99983305,134.44,134.4,12.99983305]
[1744981563307,7.43936914,134.42,134.39,28.81983305]
[1744981563608,7.43936914,134.42,134.39,15.82]
[1744981563811,7.43936914,134.42,134.39,28.81983305]
[1744981564018,7.43936914,134.42,134.36,0.063]
[1744981564190,12.99983305,134.41,134.37,12.99983305]
[1744981564392,12.99983305,134.41,134.36,0.063]
[1744981564590,18.64964886,134.41,134.37,12.99983305]
[1744981565111,18.64964886,134.41,134.37,20.81453594]
[1744981565503,7.44047619,134.4,134.37,20.81453594]
[1744981565705,46.8562026,134.4,134.36,0.063]
[1744981565910,46.8562026,134.4,134.36,20.87753594]
[1744981566212,7.44047619,134.4,134.37,20.81453594]
[1744981566428,7.44047619,134.4,134.36,0.063]
[1744981566590,7.44047619,134.4,134.36,20.87753594]
[1744981566790,18.64964886,134.39,134.36,0.063]
[1744981567094,39.4641848,134.39,134.36,0.063]
[1744981567415,18.64964886,134.37,134.36,0.063]
[1744981568519,18.64964886,134.38,134.36,0.063]
[1744981568826,0.14216157,134.44,134.36,20.87753594]
[1744981569004,20.81453594,134.41,134.37,20.81453594]
[1744981569404,18.64964886,134.39,134.36,0.063]
[1744981569714,26.28432314,134.43,134.36,0.063]
[1744981569907,18.64964886,134.39,134.36,0.063]
[1744981570107,18.64964886,134.39,134.36,20.87753594]
[1744981570320,18.64964886,134.41,134.37,20.81453594]
[1744981570514,20.81453594,134.42,134.38,20.81453594]
[1744981571323,20.81453594,134.42,134.37,20.81453594]
[1744981571509,20.81453594,134.43,134.38,20.81453594]
[1744981571707,20.81453594,134.42,134.38,20.81453594]
[1744981571910,18.64964886,134.41,134.37,20.81453594]
[1744981572129,39.4641848,134.41,134.37,20.81453594]
[1744981572936,18.64964886,134.41,134.37,20.81453594]
[1744981573235,18.64964886,134.42,134.38,20.81453594]
[1744981575714,39.4641848,134.42,134.38,20.81453594]
[1744981575930,18.64964886,134.42,134.38,20.81453594]
[1744981576133,18.64964886,134.44,134.41,20.81453594]
[1744981576310,18.64964886,134.45,134.41,20.81453594]
[1744981576510,18.64964886,134.45,134.42,20.81453594]
[1744981576722,18.64964886,134.48,134.44,20.81453594]
[1744981577122,20.81453594,134.47,134.4,15.82]
[1744981577442,18.64964886,134.46,134.43,20.81453594]
[1744981577735,18.64964886,134.46,134.42,20.81453594]
[1744981577949,0.28432314,134.5,134.44,20.81453594]
[1744981578234,18.64964886,134.47,134.43,20.81453594]
[1744981578420,39.4641848,134.47,134.43,20.81453594]
[1744981578824,18.64964886,134.47,134.43,20.81453594]
[1744981579028,39.4641848,134.47,134.43,20.81453594]
[1744981579733,26.0,134.46,134.39,20.0]
[1744981579925,26.0,134.46,134.42,20.81453594]
[1744981580131,26.0,134.46,134.43,20.81453594]
[1744981580319,20.81453594,134.49,134.44,20.81453594]
[1744981580640,18.64964886,134.51,134.47,20.81453594]
[1744981580844,65.4641848,134.51,134.47,20.81453594]
[1744981581035,44.64964886,134.51,134.46,20.81453594]
[1744981581243,20.81453594,134.5,134.43,20.0]
[1744981581429,46.81453594,134.5,134.45,20.81453594]
[1744981582112,46.81453594,134.5,134.46,20.81453594]
[1744981582316,18.64964886,134.51,134.47,20.81453594]
[1744981582513,18.64964886,134.56,134.49,20.81453594]
[1744981582729,18.64964886,134.54,134.5,20.81453594]
[1744981583026,18.64964886,134.56,134.45,20.0]
[1744981583233,20.81453594,134.52,134.48,20.81453594]
[1744981583545,20.81453594,134.54,134.5,20.81453594]
[1744981583712,18.64964886,134.54,134.5,20.81453594]
[1744981584839,18.64964886,134.57,134.53,20.81453594]
[1744981585016,0.03,134.59,134.55,20.81453594]
[1744981585415,46.84453594,134.59,134.55,20.81453594]
[1744981585810,18.64964886,134.58,134.55,20.81453594]
[1744981588427,39.4641848,134.58,134.51,20.0]
[1744981588741,20.81453594,134.55,134.51,20.81453594]
[1744981589130,12.98269046,134.55,134.5,15.82]
[1744981589440,12.98269046,134.55,134.51,12.98269046]
[1744981590230,12.98269046,134.55,134.5,28.80269046]
[1744981590736,7.43107676,134.57,134.54,12.98269046]
[1744981591240,7.43107676,134.57,134.54,20.76403689]
[1744981592929,7.43107676,134.57,134.5,35.82]
[1744981593135,7.43107676,134.57,134.54,20.76403689]
[1744981593945,28.19511365,134.57,134.5,35.82]
[1744981594426,28.19511365,134.57,134.53,20.76403689]
[1744981594620,44.64964886,134.56,134.5,15.82]
[1744981594821,20.76403689,134.55,134.5,15.82]
[1744981595040,20.76403689,134.55,134.51,20.76403689]
[1744981595439,20.76403689,134.55,134.5,15.82]
[1744981595440,26.0,134.56,134.53,20.76403689]
[1744981595637,26.0,134.56,134.54,20.76403689]
[1744981595844,7.43107676,134.57,134.55,20.76403689]
[1744981596223,7.43066307,134.58,134.55,20.76403689]
[1744981600550,7.43066307,134.58,134.56,20.76403689]
[1744981600749,7.4601674,134.59,134.57,20.76403689]
[1744981601251,0.03,134.59,134.58,20.76403689]
[1744981602361,0.03,134.59,134.56,20.76403689]
[1744981602362,7.4599725,134.59,134.56,20.76403689]
[1744981604260,7.4599725,134.59,134.55,15.76]
[1744981604457,7.4599725,134.59,134.56,20.76403689]
[1744981605342,26.03490377,134.59,134.55,36.52403689]
[1744981605551,46.79894066,134.59,134.55,36.52403689]
[1744981606156,26.03490377,134.59,134.55,36.52403689]
[1744981606665,26.03490377,134.59,134.55,20.76403689]
[1744981607258,26.03490377,134.59,134.56,20.76403689]
[1744981607467,7.4599725,134.59,134.57,20.76403689]
[1744981609171,7.4599725,134.59,134.58,20.76403689]
[1744981609544,0.03,134.6,134.58,56.66619846]
[1744981609760,0.03,134.6,134.59,41.52807378]
[1744981609958,0.03,134.62,134.59,41.52807378]
[1744981610146,0.03,134.62,134.61,41.52807378]
[1744981612159,0.03,134.62,134.61,49.2412655]
[1744981612365,0.03,134.62,134.61,69.38342707]
[1744981612655,0.03,134.62,134.61,61.67023535]
[1744981613238,0.03,134.62,134.59,20.0]
[1744981613443,18.67964886,134.62,134.55,20.0]
[1744981613644,18.67964886,134.62,134.59,12.95672096]
[1744981613844,18.67964886,134.62,134.58,12.95672096]
[1744981614066,18.67964886,134.62,134.59,12.95672096]
[1744981614741,18.67964886,134.62,134.58,12.95672096]
[1744981614942,18.67964886,134.62,134.59,12.95672096]
[1744981615644,0.03,134.62,134.6,12.95672096]
[1744981616159,7.45848352,134.62,134.6,12.95672096]
[1744981616960,7.45848352,134.62,134.56,0.14216157]
[1744981617143,7.45848352,134.62,134.58,12.95672096]
[1744981617780,7.45848352,134.62,134.59,12.95672096]
[1744981618767,0.03,134.62,134.61,12.95672096]
[1744981621157,0.03,134.62,134.59,28.49672096]
[1744981621455,0.03,134.62,134.59,12.95672096]
[1744981622053,0.03,134.62,134.56,20.0]
[1744981622258,7.42886858,134.61,134.57,12.95672096]
[1744981623173,31.60636982,134.6,134.53,35.54]
[1744981623390,12.95672096,134.58,134.52,15.54]
[1744981623547,12.95672096,134.58,134.53,12.95672096]
[1744981623950,18.64964886,134.56,134.49,27.43528423]
[1744981624167,7.43218134,134.55,134.52,12.95672096]
[1744981624359,20.3889023,134.55,134.5,12.95672096]
[1744981624685,7.43218134,134.55,134.51,12.95672096]
[1744981624891,7.43218134,134.55,134.52,12.95672096]
[1744981625589,7.43218134,134.55,134.51,12.95672096]
[1744981625788,44.57531505,134.59,134.54,12.95672096]
[1744981625959,7.43052459,134.58,134.57,12.95672096]
[1744981626691,7.42886858,134.61,134.57,12.95672096]
[1744981626879,7.42886858,134.61,134.6,12.95672096]
[1744981627880,0.03,134.62,134.6,12.95672096]
[1744981628781,0.03,134.62,134.61,12.95672096]
[1744981629290,0.03,134.62,134.61,20.74327415]
[1744981630915,52.1079656,134.62,134.6,20.74327415]
[1744981631084,52.1079656,134.62,134.57,15.54]
[1744981631557,52.1079656,134.62,134.58,20.74327415]
[1744981631962,70.67875745,134.62,134.59,20.74327415]
[1744981632592,70.67875745,134.62,134.57,15.54]
[1744981632783,70.67875745,134.62,134.59,20.74327415]
[1744981633188,70.67875745,134.62,134.57,15.54]
[1744981633390,70.67875745,134.62,134.59,20.74327415]
[1744981634173,70.67875745,134.62,134.57,36.28327415]
[1744981634174,91.4220316,134.62,134.57,36.28327415]
[1744981636298,91.4220316,134.62,134.57,15.54]
[1744981636479,91.4220316,134.62,134.58,20.74327415]
[1744981636799,91.4220316,134.62,134.57,36.28327415]
[1744981637807,91.4220316,134.62,134.57,20.74327415]
[1744981638703,91.4220316,134.62,134.58,20.74327415]
[1744981641700,91.4220316,134.62,134.54,20.80627415]
[1744981641909,91.4220316,134.62,134.57,20.74327415]
[1744981643798,20.74327415,134.61,134.54,0.063]
[1744981643982,20.74327415,134.59,134.54,20.80627415]
[1744981644583,18.64964886,134.59,134.54,0.063]
[1744981644790,39.39292301,134.59,134.55,20.74327415]
[1744981645189,18.64964886,134.59,134.55,20.74327415]
[1744981645385,65.39292301,134.59,134.54,0.063]
[1744981645600,65.39292301,134.59,134.55,20.74327415]
[1744981646809,65.39292301,134.59,134.54,20.80627415]
[1744981646989,18.64964886,134.56,134.54,0.063]
[1744981647193,39.39292301,134.55,134.54,0.063]
[1744981649308,31.63450314,134.55,134.54,0.063]
[1744981649609,18.64964886,134.55,134.54,0.063]
[1744981651513,18.64964886,134.55,134.54,13.04785428]
[1744981652288,18.64964886,134.55,134.54,0.063]
[1744981652827,7.32415511,134.61,134.54,13.04785428]
[1744981652991,18.64964886,134.6,134.56,12.98485428]
[1744981653197,31.63450314,134.6,134.55,12.98485428]
[1744981653420,18.64964886,134.58,134.55,12.98485428]
[1744981658013,18.64964886,134.58,134.54,13.04785428]
[1744981658999,31.63450314,134.58,134.54,13.04785428]
[1744981660016,18.64964886,134.56,134.54,0.063]
[1744981662025,18.64964886,134.58,134.54,0.063]
[1744981662318,1.45648471,134.62,134.57,12.98485428]
[1744981662319,0.03,134.62,134.57,12.98485428]
[1744981662507,0.03,134.62,134.6,12.98485428]
[1744981662811,0.03,134.62,134.59,12.98485428]
[1744981663115,26.0,134.58,134.56,12.98485428]
[1744981663317,18.64964886,134.59,134.55,12.98485428]
[1744981663516,18.64964886,134.59,134.54,0.063]
[1744981663517,44.64964886,134.61,134.57,12.98485428]
[1744981663896,44.64964886,134.61,134.54,13.04785428]
[1744981663897,0.03,134.62,134.55,7.43218134]
[1744981664198,0.03,134.62,134.58,12.98485428]
[1744981664805,18.64964886,134.61,134.55,15.38]
[1744981665022,18.64964886,134.61,134.57,12.98485428]
[1744981665955,7.4294205,134.6,134.57,12.98485428]
[1744981669225,7.4294205,134.6,134.58,12.98485428]
[1744981670119,7.4294205,134.6,134.57,12.98485428]
[1744981671604,7.4294205,134.6,134.56,12.98485428]
[1744981673224,7.4294205,134.6,134.57,12.98485428]
[1744981676926,0.03,134.62,134.59,12.98485428]
[1744981677112,0.03,134.62,134.6,12.98485428]
[1744981677428,7.45854116,134.62,134.58,11.98485428]
[1744981677727,20.44339544,134.62,134.58,11.98485428]
[1744981679323,18.64964886,134.61,134.55,15.38]
[1744981679527,18.64964886,134.61,134.57,12.98485428]
[1744981679528,31.63450314,134.61,134.57,12.98485428]
[1744981679709,31.63450314,134.61,134.56,12.98485428]
[1744981679910,12.98485428,134.6,134.56,12.98485428]
[1744981681933,7.4299725,134.59,134.56,12.98485428]
[1744981682326,7.4299725,134.59,134.57,12.98485428]
[1744981682825,44.64964886,134.55,134.54,0.063]
[1744981683012,57.63450314,134.55,134.54,0.063]
[1744981683207,52.96204599,134.55,134.54,0.063]
[1744981684018,60.39422733,134.55,134.54,0.063]
[1744981685134,65.06790575,134.55,134.54,0.063]
[1744981687547,65.49439046,134.55,134.54,1e-08]
[1744981687721,78.48046601,134.55,134.54,1e-08]
[1744981688037,65.49439046,134.55,134.54,1e-08]
[1744981688543,65.35222889,134.55,134.54,1e-08]
[1744981688742,65.49439046,134.55,134.54,1e-08]
[1744981690344,65.06790575,134.55,134.54,1e-08]
[1744981690545,39.06790575,134.55,134.54,1e-08]
[1744981691041,65.06790575,134.55,134.54,1e-08]
[1744981692045,26.0818302,134.55,134.54,1e-08]
[1744981695345,7.43218134,134.55,134.54,1e-08]
[1744981696042,39.06790575,134.55,134.54,1e-08]
[1744981699051,39.49439046,134.55,134.54,1e-08]
[1744981704354,39.35222889,134.55,134.54,1e-08]
[1744981704553,39.49439046,134.55,134.54,1e-08]
[1744981705148,34.82180602,134.55,134.54,1e-08]
[1744981706458,26.96313997,134.52,134.51,0.063]
[1744981708536,34.3969788,134.52,134.51,0.063]
[1744981713861,26.08348769,134.52,134.51,0.063]
[1744981715461,7.43356661,134.53,134.51,0.063]
[1744981716350,7.43356661,134.53,134.51,8.37649111]
[1744981721258,7.43356661,134.53,134.51,0.063]
[1744981724679,15.74705772,134.53,134.51,0.063]
[1744981727582,7.43356661,134.53,134.51,0.063]
[1744981729591,7.43356661,134.53,134.51,8.37649111]
[1744981730364,8.43300536,134.54,134.51,8.37649111]
[1744981732597,0.99999999,134.54,134.53,8.31349111]
[1744981733278,0.99999999,134.54,134.53,28.45565268]
[1744981734285,0.99999999,134.54,134.53,8.31349111]
[1744981736465,0.99999999,134.54,134.53,36.17326207]
[1744981738693,0.99999999,134.54,134.53,69.42722651]
[1744981741689,0.99999999,134.54,134.53,36.17326207]
[1744981743689,0.99999999,134.54,134.53,8.31349111]
[1744981744484,0.99999999,134.54,134.52,8.31349111]
[1744981744685,16.74622485,134.54,134.51,0.063]
[1744981745198,8.31349111,134.53,134.51,0.063]
[1744981745894,8.31349111,134.53,134.49,7.37649112]
[1744981746295,34.32805925,134.54,134.49,7.37649112]
[1744981747994,15.74622486,134.54,134.5,8.31349111]
[1744981748184,7.43273375,134.54,134.51,8.31349111]
[1744981754291,7.43221893,134.55,134.53,8.31349111]
[1744981754494,7.43186406,134.56,134.5,20.0]
[1744981754695,15.74535517,134.56,134.52,8.31349111]
[1744981755383,7.43186406,134.56,134.53,8.31349111]
[1744981757997,7.43186406,134.56,134.52,8.31349111]
[1744981759705,7.43186406,134.56,134.53,8.31349111]
[1744981762205,7.43186406,134.56,134.52,8.31349111]
[1744981764293,8.31349111,134.54,134.5,8.31349111]
[1744981764815,8.31349111,134.54,134.48,14.983]
[1744981765110,8.31349111,134.54,134.49,8.31349111]
[1744981765308,8.31349111,134.54,134.48,14.983]
[1744981765508,8.31349111,134.54,134.49,8.31349111]
[1744981765812,7.43328625,134.53,134.49,8.31349111]
[1744981767100,26.01650188,134.53,134.49,8.31349111]
[1744981767703,26.01650188,134.53,134.5,8.31349111]
[1744981768102,18.57811607,134.57,134.52,8.31349111]
[1744981768291,18.57811607,134.57,134.54,8.31349111]
[1744981770604,18.57811607,134.57,134.55,8.31349111]
[1744981770805,0.45648471,134.61,134.56,8.31349111]
[1744981770806,0.03,134.6,134.56,8.31349111]
[1744981771113,18.64964886,134.59,134.56,8.31349111]
[1744981772426,18.64964886,134.59,134.53,14.92]
[1744981772427,0.03,134.6,134.58,8.31349111]
[1744981773030,0.03,134.6,134.57,8.31349111]
[1744981774719,52.99313997,134.6,134.53,14.92]
[1744981774897,52.99313997,134.6,134.56,8.31349111]
[1744981775414,44.67964886,134.6,134.57,8.31349111]
[1744981776027,26.99313997,134.6,134.56,8.31349111]
[1744981776331,26.99313997,134.6,134.55,8.31349111]
[1744981776332,52.99313997,134.6,134.55,8.31349111]
[1744981777227,52.99313997,134.6,134.56,8.31349111]
[1744981780031,44.67964886,134.6,134.57,8.31349111]
[1744981781209,18.67964886,134.6,134.57,8.31349111]
[1744981784705,18.67964886,134.6,134.56,8.31349111]
[1744981785533,18.67964886,134.6,134.53,14.92]
[1744981786052,18.67964886,134.6,134.56,8.31349111]
[1744981786528,18.64964886,134.56,134.49,20.0]
[1744981786722,8.31349111,134.55,134.5,8.31349111]
[1744981786899,26.96313997,134.57,134.52,8.31349111]
[1744981787103,18.64964886,134.57,134.53,8.31349111]
[1744981787333,7.43162901,134.56,134.53,8.31349111]
[1744981787932,7.43162901,134.56,134.52,8.31349111]
[1744981788125,15.74512012,134.56,134.52,8.31349111]
[1744981788832,7.43162901,134.56,134.52,8.31349111]
[1744981789913,7.43162901,134.56,134.55,8.31349111]
[1744981791048,18.64964886,134.58,134.55,8.31349111]
[1744981791334,18.64964886,134.58,134.54,8.31349111]
[1744981792526,8.31349111,134.56,134.51,26.0]
[1744981792723,8.31349111,134.56,134.52,8.31349111]
[1744981792930,15.74456787,134.57,134.52,8.31349111]
[1744981797367,7.43107676,134.57,134.52,8.31349111]
[1744981797654,15.74456787,134.57,134.52,8.31349111]
[1744981800753,15.74456787,134.57,134.53,8.31349111]
[1744981802746,15.74456787,134.57,134.52,8.31349111]
[1744981804029,15.74456787,134.57,134.53,8.31349111]
[1744981805738,7.43107676,134.57,134.53,8.31349111]
[1744981805946,18.575164,134.59,134.55,8.31349111]
[1744981805947,7.4299725,134.59,134.55,8.31349111]
[1744981806634,15.74346361,134.59,134.55,8.31349111]
[1744981807259,8.34349111,134.6,134.55,8.31349111]
[1744981807434,0.03,134.6,134.56,8.31349111]
[1744981807636,0.03,134.6,134.58,8.31349111]
[1744981808859,0.03,134.6,134.59,8.31349111]
[1744981811075,0.03,134.6,134.59,15.74346361]
[1744981811362,0.03,134.6,134.59,8.31349111]
[1744981813079,0.03,134.6,134.59,15.74346361]
[1744981814374,0.03,134.6,134.59,8.31349111]
[1744981815764,0.03,134.6,134.58,15.74379111]
[1744981815967,0.03,134.6,134.56,14.8]
[1744981816140,0.03,134.6,134.56,23.11349111]
[1744981816341,15.77291161,134.6,134.56,30.5449327]
[1744981816541,7.4594205,134.6,134.56,30.5449327]
[1744981817240,15.77291161,134.6,134.55,26.0]
[1744981817448,8.31349111,134.59,134.55,49.09349111]
[1744981818251,7.43052459,134.58,134.55,49.09349111]
[1744981818570,8.31349111,134.56,134.52,231.6]
[1744981818864,8.31349111,134.55,134.52,231.6]
[1744981819549,15.7458379,134.55,134.52,231.6]
[1744981822169,15.74512012,134.56,134.52,231.6]
[1744981823467,15.74512012,134.56,134.51,56.52759799]
[1744981826464,15.74512012,134.56,134.51,49.09349111]
[1744981828771,15.74512012,134.56,134.52,8.31349111]
[1744981829970,15.74512012,134.56,134.51,49.09349111]
[1744981831088,15.74512012,134.56,134.51,56.5278367]
[1744981831252,15.74512012,134.56,134.52,8.31349111]
[1744981833173,18.64964886,134.52,134.48,0.063]
[1744981833346,8.31349111,134.51,134.48,0.063]
[1744981833546,26.96313997,134.52,134.48,0.063]
[1744981833777,26.96313997,134.52,134.48,8.37649111]
[1744981833960,18.64964886,134.52,134.48,8.37649111]
[1744981835349,26.0837823,134.52,134.48,8.37649111]
[1744981835865,8.31349111,134.53,134.5,8.31349111]
[1744981835866,7.43331526,134.53,134.5,8.31349111]
[1744981839272,15.74680637,134.53,134.49,8.31349111]
[1744981844076,7.43295811,134.54,134.49,15.74895542]
[1744981844277,32.77691616,134.58,134.52,8.31349111]
[1744981844278,6.63475459,134.58,134.52,8.31349111]
[1744981844460,6.63475459,134.58,134.53,8.31349111]
[1744981844461,18.64964886,134.57,134.53,8.31349111]
[1744981844965,26.96313997,134.57,134.53,8.31349111]
[1744981845180,44.65501949,134.59,134.52,8.31349111]
[1744981845482,8.31349111,134.57,134.52,8.31349111]
[1744981846583,7.43162901,134.56,134.52,8.31349111]
[1744981847078,7.43131718,134.57,134.54,8.31349111]
[1744981849482,7.43131718,134.57,134.53,15.74674122]
[1744981849984,8.31349111,134.57,134.53,15.74674122]
[1744981850987,7.43130505,134.57,134.54,8.31349111]
[1744981851881,7.43069076,134.58,134.55,8.31349111]
[1744981852482,7.43069076,134.58,134.53,7.43325011]
[1744981852483,15.74418187,134.58,134.54,8.31349111]
[1744981861198,8.31349111,134.58,134.54,15.74614705]